fUSD/lending_fUSD_20260311
["ID","MTS","AMOUNT","RATE_DAILY","PERIOD"]
[408213610,1773246656010,-1078.96417025,0.0004444,120]
[408213612,1773246656020,-21912.06657391,0.00044461,15]
[408213614,1773246656029,-155.28,0.0004448,30]
[408213616,1773246656039,-3506.0,0.0004449,2]
[408213618,1773246656049,-5507.984,0.0004449,2]
[408213620,1773246656058,-500.0,0.000445,120]
[408213622,1773246656074,-540.27,0.00044589,30]
[408213624,1773246656083,-500.0,0.00044657,120]
[408213626,1773246656094,-786.0,0.00044658,120]
[408213627,1773246656108,-4400.0,0.000448,16]
[408213628,1773246656118,-150.5,0.00044877,2]
[408213629,1773246656127,-5000.0,0.000449,120]
[408213630,1773246656137,-399.76705102,0.000449,30]
[408213631,1773246656147,-155.0,0.000449,120]
[408213632,1773246656158,-4400.0,0.000449,16]
[408213633,1773246656168,-4273.37725382,0.000449,28]
[408213634,1773246656178,-786.0,0.00044932,120]
[408213650,1773246656385,-308.0,0.00044958,16]
[408213652,1773246656395,-200.0,0.00044962,2]
[408213654,1773246656405,-200.0,0.00044962,2]
[408213656,1773246656414,-200.0,0.00044962,2]
[408213658,1773246656423,-200.0,0.00044962,2]
[408213660,1773246656432,-200.0,0.00044962,2]
[408213662,1773246656442,-200.0,0.00044962,2]
[408213664,1773246656451,-200.0,0.00044962,2]
[408213666,1773246656460,-200.0,0.00044962,2]
[408213668,1773246656469,-200.0,0.00044962,2]
[408213670,1773246656478,-200.0,0.00044962,2]
[408213672,1773246656488,-200.0,0.00044962,2]
[408213674,1773246656497,-200.0,0.00044962,2]
[408213676,1773246656507,-200.0,0.00044962,2]
[408213678,1773246656516,-200.0,0.00044962,2]
[408213680,1773246656526,-200.0,0.00044962,2]
[408213682,1773246656536,-200.0,0.00044962,2]
[408213684,1773246656545,-200.0,0.00044962,2]
[408213686,1773246656555,-200.0,0.00044962,2]
[408213688,1773246656568,-200.0,0.00044962,2]
[408213691,1773246656579,-200.0,0.00044962,2]
[408213693,1773246656589,-200.0,0.00044962,2]
[408213695,1773246656600,-200.0,0.00044962,2]
[408213697,1773246656610,-200.0,0.00044962,2]
[408213699,1773246656620,-200.0,0.00044962,2]
[408213701,1773246656629,-192.0,0.00044962,2]
[408213703,1773246656639,-2036.11,0.0004498,120]
[408213705,1773246656649,-2028.0,0.0004499,120]
[408213707,1773246656659,-190.10063907,0.00045,120]
[408213709,1773246656669,-3101.35559385,0.00045,120]
[408213711,1773246656679,-671.42231039,0.00045,120]
[408213713,1773246656689,-4367.61505582,0.00045,120]
[408213715,1773246656699,-10198.7954201,0.00045,120]
[408213717,1773246656709,-371.1721497,0.00045,30]
[408213719,1773246656719,-1017.7598,0.00045,120]
[408213721,1773246656728,-1807.23,0.00045,14]
[408213723,1773246656738,-7259.2,0.00045,120]
[408213725,1773246656747,-300059.0,0.00045,30]
[408213728,1773246656758,-230.58282376,0.00045,120]
[408213730,1773246656771,-120000.0,0.00045,30]
[408213732,1773246656782,-251.0,0.00045,7]
[408213734,1773246656791,-11539.0,0.00045,120]
[408213736,1773246656801,-15020.7998981,0.00045,120]
[408213738,1773246656811,-10220.86168655,0.00045,30]
[408213740,1773246656821,-660.83712738,0.00045,30]
[408213742,1773246656831,-3518.0,0.00045,14]
[408213744,1773246656841,-550.0,0.00045,120]
[408213746,1773246656854,-500.0,0.00045,120]
[408213748,1773246656863,-426870.67999895,0.00045,120]
[408213750,1773246656874,-420.0,0.00045,30]
[408213753,1773246656883,-5016.09071008,0.00045,60]
[408213755,1773246656893,-5999.99683493,0.00045,120]
[408213757,1773246656902,-1870.75,0.00045,60]
[408213759,1773246656912,-2500.0,0.00045,30]
[408213761,1773246656922,-74590.0,0.00045,60]
[408213763,1773246656931,-26065.22494031,0.00045,120]
[408213765,1773246656941,-10101.9022606,0.00045,120]
[408213767,1773246656950,-647.36,0.00045,120]
[408213769,1773246656959,-301.08,0.00045,120]
[408213771,1773246656972,-404.42,0.00045,120]
[408213773,1773246656982,-382.0,0.00045,120]
[408213775,1773246656991,-1137.36,0.00045,30]
[408213777,1773246657001,-725.78,0.00045,30]
[408213780,1773246657010,-240.46,0.00045,30]
[408213782,1773246657020,-150.0,0.00045,30]
[408213784,1773246657029,-150.0,0.00045,30]
[408213786,1773246657038,-150.0,0.00045,30]
[408213788,1773246657049,-150.24888637,0.00045,30]
[408213790,1773246657058,-150.0,0.00045,30]
[408213792,1773246657069,-150.0,0.00045,30]
[408213794,1773246657078,-185.72002468,0.00045,30]
[408213796,1773246657088,-150.0,0.00045,30]
[408213798,1773246657100,-150.0,0.00045,30]
[408213800,1773246657110,-150.0,0.00045,30]
[408213802,1773246657120,-150.0,0.00045,30]
[408213804,1773246657129,-150.0,0.00045,30]
[408213806,1773246657139,-150.0,0.00045,30]
[408213808,1773246657151,-150.0,0.00045,30]
[408213810,1773246657164,-63387.6148,0.00045048,30]
[408213812,1773246657175,-185.72002468,0.00045051,30]
[408213814,1773246657185,-500.0,0.00045068,120]
[408213817,1773246657195,-150.0,0.00045085,30]
[408213819,1773246657205,-150.0,0.00045094,30]
[408213821,1773246657214,-500.0,0.000451,30]
[408213823,1773246657225,-185.72002468,0.00045101,30]
[408213825,1773246657234,-150.0,0.00045114,30]
[408213827,1773246657244,-150.0,0.00045116,30]
[408213829,1773246657253,-150.0,0.00045135,30]
[408213831,1773246657263,-185.72002468,0.00045152,30]
[408213833,1773246657272,-150.0,0.00045169,30]
[408213835,1773246657283,-150.0,0.00045189,30]
[408213836,1773246657293,-157.0,0.00045194,3]
[408213837,1773246657303,-185.72002468,0.00045202,30]
[408213838,1773246657312,-786.0,0.00045205,120]
[408213839,1773246657322,-50000.0,0.00045205,75]
[408213840,1773246657333,-151.0,0.00045205,120]
[408213841,1773246657343,-151.0,0.00045205,120]
[408213842,1773246657353,-151.0,0.00045205,120]
[408213843,1773246657367,-151.0,0.00045205,120]
[408213844,1773246657376,-181.017546,0.00045205,120]
[408213845,1773246657386,-151.0,0.00045205,120]
[408213846,1773246657396,-151.0,0.00045205,120]
[408213847,1773246657405,-151.0,0.00045205,120]
[408213848,1773246657415,-151.0,0.00045205,120]
[408213849,1773246657425,-280.801986,0.00045205,120]
[408213850,1773246657435,-151.0,0.00045205,120]
[408213851,1773246657444,-164.039615,0.00045205,120]
[408213852,1773246657455,-151.0,0.00045205,120]
[408213853,1773246657465,-289.295038,0.00045205,120]
[408213854,1773246657474,-152.068812,0.00045205,120]
[408213855,1773246657484,-199.545306,0.00045205,120]
[408213856,1773246657493,-151.0,0.00045205,120]
[408213857,1773246657503,-151.0,0.00045205,120]
[408213858,1773246657513,-151.0,0.00045205,120]
[408213859,1773246657523,-151.0,0.00045205,120]
[408213860,1773246657532,-151.0,0.00045205,120]
[408213861,1773246657543,-151.0,0.00045205,120]
[408213862,1773246657552,-151.0,0.00045205,120]
[408213863,1773246657562,-151.0,0.00045205,120]
[408213864,1773246657574,-151.0,0.00045205,120]
[408213865,1773246657584,-297.678256,0.00045205,120]
[408213866,1773246657593,-166.045556,0.00045205,120]
[408213867,1773246657603,-166.045556,0.00045205,120]
[408213868,1773246657612,-166.045556,0.00045205,120]
[408213869,1773246657623,-166.045556,0.00045205,120]
[408213870,1773246657632,-166.045556,0.00045205,120]
[408213871,1773246657642,-166.045556,0.00045205,120]
[408213872,1773246657651,-166.045556,0.00045205,120]
[408213873,1773246657662,-166.045556,0.00045205,120]
[408213874,1773246657671,-166.045556,0.00045205,120]
[408213875,1773246657681,-166.045556,0.00045205,120]
[408213876,1773246657691,-166.045556,0.00045205,120]
[408213877,1773246657701,-166.045556,0.00045205,120]
[408213878,1773246657711,-166.045556,0.00045205,120]
[408213879,1773246657721,-166.045556,0.00045205,120]
[408213880,1773246657731,-166.045556,0.00045205,120]
[408213881,1773246657741,-166.045556,0.00045205,120]
[408213882,1773246657751,-166.045556,0.00045205,120]
[408213883,1773246657761,-166.045556,0.00045205,120]
[408213884,1773246657772,-166.045556,0.00045205,120]
[408213885,1773246657781,-166.045561,0.00045205,120]
[408213886,1773246657791,-160.75292,0.00045205,120]
[408213887,1773246657801,-151.0,0.00045205,120]
[408213888,1773246657810,-151.0,0.00045205,120]
[408213889,1773246657820,-151.0,0.00045205,120]
[408213890,1773246657830,-151.0,0.00045205,120]
[408213891,1773246657839,-151.0,0.00045205,120]
[408213892,1773246657849,-151.0,0.00045205,120]
[408213893,1773246657859,-151.0,0.00045205,120]
[408213894,1773246657868,-151.0,0.00045205,120]
[408213895,1773246657878,-151.0,0.00045205,120]
[408213896,1773246657888,-151.0,0.00045205,120]
[408213897,1773246657897,-151.0,0.00045205,120]
[408213898,1773246657907,-151.0,0.00045205,120]
[408213899,1773246657916,-151.0,0.00045205,120]
[408213900,1773246657926,-151.0,0.00045205,120]
[408213901,1773246657936,-168.283615,0.00045205,120]
[408213902,1773246657946,-169.59808,0.00045205,120]
[408213903,1773246657956,-169.59808,0.00045205,120]
[408213904,1773246657966,-169.59808,0.00045205,120]
[408213905,1773246657977,-169.59808,0.00045205,120]
[408213906,1773246657986,-169.59808,0.00045205,120]
[408213907,1773246657996,-169.59808,0.00045205,120]
[408213908,1773246658006,-169.59808,0.00045205,120]
[408213909,1773246658017,-169.59808,0.00045205,120]
[408213910,1773246658026,-169.59808,0.00045205,120]
[408213911,1773246658035,-169.59808,0.00045205,120]
[408213912,1773246658049,-169.59808,0.00045205,120]
[408213913,1773246658066,-169.59808,0.00045205,120]
[408213914,1773246658075,-169.59808,0.00045205,120]
[408213915,1773246658085,-169.59808,0.00045205,120]
[408213916,1773246658096,-169.59808,0.00045205,120]
[408213917,1773246658109,-169.59808,0.00045205,120]
[408213918,1773246658119,-169.59808,0.00045205,120]
[408213919,1773246658131,-169.59808,0.00045205,120]
[408213920,1773246658140,-169.59808,0.00045205,120]
[408213921,1773246658151,-169.598072,0.00045205,120]
[408213922,1773246658161,-151.0,0.00045205,120]
[408213923,1773246658172,-151.0,0.00045205,120]
[408213924,1773246658181,-151.0,0.00045205,120]
[408213925,1773246658191,-151.0,0.00045205,120]
[408213926,1773246658201,-151.0,0.00045205,120]
[408213927,1773246658211,-151.0,0.00045205,120]
[408213928,1773246658220,-151.0,0.00045205,120]
[408213929,1773246658230,-151.0,0.00045205,120]
[408213930,1773246658240,-151.0,0.00045205,120]
[408213931,1773246658249,-226.558931,0.00045205,120]
[408213932,1773246658259,-151.0,0.00045205,120]
[408213933,1773246658269,-151.0,0.00045205,120]
[408213934,1773246658278,-198.74649,0.00045205,120]
[408213935,1773246658288,-1000.617543,0.00045205,120]
[408213936,1773246658297,-1000.617543,0.00045205,120]
[408213937,1773246658307,-1000.617543,0.00045205,120]
[408213938,1773246658316,-1000.617543,0.00045205,120]
[408213939,1773246658327,-1000.617543,0.00045205,120]
[408213940,1773246658337,-1000.617543,0.00045205,120]
[408213941,1773246658346,-1000.617543,0.00045205,120]
[408213942,1773246658357,-1000.617543,0.00045205,120]
[408213943,1773246658367,-1000.617543,0.00045205,120]
[408213944,1773246658377,-1000.617543,0.00045205,120]
[408213945,1773246658388,-1000.617543,0.00045205,120]
[408213946,1773246658397,-1000.617543,0.00045205,120]
[408213947,1773246658408,-1000.617543,0.00045205,120]
[408213948,1773246658418,-1000.617543,0.00045205,120]
[408213949,1773246658428,-1000.617543,0.00045205,120]
[408213950,1773246658438,-1000.617543,0.00045205,120]
[408213951,1773246658448,-1000.617543,0.00045205,120]
[408213952,1773246658458,-1000.617543,0.00045205,120]
[408213953,1773246658467,-1000.617543,0.00045205,120]
[408213954,1773246658476,-1000.617549,0.00045205,120]
[408213955,1773246658485,-151.0,0.00045205,120]
[408213956,1773246658496,-151.0,0.00045205,120]
[408213957,1773246658506,-151.0,0.00045205,120]
[408213958,1773246658516,-151.0,0.00045205,120]
[408213959,1773246658525,-151.0,0.00045205,120]
[408213960,1773246658535,-151.0,0.00045205,120]
[408213961,1773246658544,-151.0,0.00045205,120]
[408213962,1773246658553,-151.0,0.00045205,120]
[408213963,1773246658563,-151.0,0.00045205,120]
[408213964,1773246658572,-151.0,0.00045205,120]
[408213965,1773246658582,-151.0,0.00045205,120]
[408213966,1773246658591,-151.0,0.00045205,120]
[408213967,1773246658601,-151.0,0.00045205,120]
[408213968,1773246658611,-151.0,0.00045205,120]
[408213969,1773246658620,-151.0,0.00045205,120]
[408213970,1773246658630,-151.0,0.00045205,120]
[408213971,1773246658639,-217.96833,0.00045205,120]
[408213972,1773246658649,-154.8620445,0.0004521,120]
[408213973,1773246658658,-154.8620445,0.0004521,120]
[408213974,1773246658667,-154.8620445,0.0004521,120]
[408213975,1773246658676,-154.8620445,0.0004521,120]
[408213976,1773246658685,-154.8620445,0.0004521,120]
[408213977,1773246658694,-154.8620445,0.0004521,120]
[408213978,1773246658703,-154.8620445,0.0004521,120]
[408213979,1773246658713,-154.8620445,0.0004521,120]
[408213980,1773246658722,-154.8620445,0.0004521,120]
[408213981,1773246658731,-154.8620445,0.0004521,120]
[408213982,1773246658740,-154.8620445,0.0004521,120]
[408213983,1773246658749,-154.8620445,0.0004521,120]
[408213984,1773246658814,-154.8620445,0.0004521,120]
[408213985,1773246658823,-154.8620445,0.0004521,120]
[408213986,1773246658832,-154.8620445,0.0004521,120]
[408213987,1773246658841,-154.8620445,0.0004521,120]
[408213988,1773246658851,-154.8620445,0.0004521,120]
[408213989,1773246658860,-154.86,0.0004521,120]
[408213990,1773246658869,-325.21029345,0.0004521,120]
[408213991,1773246658878,-325.21029345,0.0004521,120]
[408213992,1773246658887,-325.21029345,0.0004521,120]
[408213994,1773246658896,-325.21029345,0.0004521,120]
[408213995,1773246658905,-325.21029345,0.0004521,120]
[408213996,1773246658914,-325.21029345,0.0004521,120]
[408213997,1773246658923,-325.21029345,0.0004521,120]
[408213998,1773246658932,-325.21029345,0.0004521,120]
[408213999,1773246658941,-325.21029345,0.0004521,120]
[408214000,1773246658949,-325.21029345,0.0004521,120]
[408214001,1773246658958,-325.21029345,0.0004521,120]
[408214002,1773246658967,-325.21029345,0.0004521,120]
[408214003,1773246658976,-325.21029345,0.0004521,120]
[408214004,1773246658985,-325.21029345,0.0004521,120]
[408214005,1773246658994,-325.21029345,0.0004521,120]
[408214006,1773246659003,-325.21029345,0.0004521,120]
[408214007,1773246659012,-325.21029345,0.0004521,120]
[408214008,1773246659021,-325.21029345,0.0004521,120]
[408214009,1773246659030,-325.21029345,0.0004521,120]
[408214010,1773246659039,-150.0,0.00045217,30]
[408214011,1773246659048,-150.0,0.00045227,30]
[408214012,1773246659057,-150.0,0.00045233,30]
[408214013,1773246659066,-185.72002468,0.00045253,30]
[408214014,1773246659075,-150.0,0.00045254,30]
[408214015,1773246659084,-150.0,0.0004527,30]
[408214016,1773246659093,-150.0,0.00045278,30]
[408214017,1773246659106,-150.0,0.00045283,30]
[408214018,1773246659115,-185.72002468,0.00045303,30]
[408214019,1773246659125,-150.0,0.00045313,30]
[408214020,1773246659133,-150.0,0.00045339,30]
[408214021,1773246659143,-150.0,0.00045341,30]
[408214022,1773246659152,-150.0,0.00045349,30]
[408214023,1773246659161,-185.72002468,0.00045354,30]
[408214024,1773246659170,-1000.0,0.00045361,14]
[408214025,1773246659179,-150.0,0.00045377,30]
[408214026,1773246659188,-1330.55081231,0.0004538,101]
[408214027,1773246659197,-325.21,0.00045399,120]
[408214028,1773246659207,-556.76926848,0.000454,19]
[408214029,1773246659216,-1053.27149251,0.000454,2]
[408214030,1773246659225,-1184.26925272,0.000454,2]
[408214031,1773246659235,-3713.97959662,0.000454,2]
[408214032,1773246659243,-185.72002468,0.00045404,30]
[408214033,1773246659252,-150.0,0.00045405,30]
[408214034,1773246659261,-736.60331111,0.00045421,120]
[408214035,1773246659270,-150.0,0.00045424,30]
[408214036,1773246659279,-150.0,0.00045435,30]
[408214037,1773246659289,-150.0,0.00045455,30]
[408214038,1773246659299,-150.0,0.00045455,30]
[408214039,1773246659308,-185.72002468,0.00045455,30]
[408214040,1773246659318,-150.0,0.00045455,30]
[408214041,1773246659327,-150.0,0.00045465,30]
[408214042,1773246659336,-150.0,0.00045472,30]
[408214043,1773246659345,-500.0,0.00045479,120]
[408214044,1773246659357,-786.0,0.00045479,120]
[408214045,1773246659366,-375.43454271,0.00045482,102]
[408214046,1773246659375,-1077.92009856,0.00045498,60]
[408214047,1773246659385,-1210.5351996,0.00045499,30]
[408214048,1773246659394,-12534497.0,0.00045499,10]
[408214049,1773246659404,-5000000.0,0.000455,120]
[408214050,1773246659412,-5000000.0,0.000455,120]
[408214051,1773246659422,-178.561,0.00045504,120]
[408214052,1773246659433,-185.72002468,0.00045505,30]
[408214053,1773246659443,-150.0,0.00045508,30]
[408214054,1773246659452,-150.0,0.00045541,30]
[408214055,1773246659461,-185.72002468,0.00045556,30]
[408214056,1773246659470,-150.0,0.00045556,30]
[408214057,1773246659479,-150.0,0.00045566,30]
[408214058,1773246659488,-150.0,0.00045568,30]
[408214059,1773246659497,-150.0,0.00045581,30]
[408214060,1773246659506,-150.0,0.00045593,30]
[408214061,1773246659515,-161.0,0.00045598,16]
[408214062,1773246659525,-1000.0,0.00045604,14]
[408214063,1773246659534,-185.72002468,0.00045606,30]
[408214064,1773246659543,-154.32,0.00045616,120]
[408214065,1773246659552,-150.0,0.00045625,30]
[408214066,1773246659562,-504.0,0.00045636,28]
[408214067,1773246659571,-151.0,0.00045652,3]
[408214068,1773246659580,-150.0,0.00045652,30]
[408214069,1773246659590,-185.72002468,0.00045657,30]
[408214070,1773246659600,-150.0,0.0004566,30]
[408214071,1773246659610,-150.0,0.00045676,30]
[408214072,1773246659619,-150.0,0.00045678,30]
[408214073,1773246659628,-1000.0,0.00045681,14]
[408214074,1773246659638,-150.0,0.00045682,30]
[408214075,1773246659648,-150.0,0.00045698,30]
[408214076,1773246659657,-155.0,0.000457,120]
[408214077,1773246659666,-3846.0,0.000457,120]
[408214078,1773246659675,-185.72002468,0.00045707,30]
[408214079,1773246659684,-786.0,0.00045753,120]
[408214080,1773246659693,-150.0,0.00045755,30]
[408214081,1773246659702,-185.72002468,0.00045758,30]
[408214082,1773246659711,-150.0,0.00045763,30]
[408214083,1773246659721,-150.0,0.00045795,30]
[408214084,1773246659731,-185.72002468,0.00045808,30]
[408214085,1773246659740,-150.0,0.00045811,30]
[408214086,1773246659749,-150.0,0.00045814,30]
[408214087,1773246659758,-150.0,0.00045833,30]
[408214088,1773246659768,-500.0,0.0004584,60]
[408214089,1773246659776,-500.0,0.0004584,60]
[408214090,1773246659786,-500.0,0.0004584,60]
[408214091,1773246659796,-150.0,0.00045847,30]
[408214092,1773246659806,-150.0,0.00045849,30]
[408214093,1773246659816,-185.72002468,0.00045859,30]
[408214094,1773246659825,-150.0,0.0004587,30]
[408214095,1773246659834,-848.0,0.00045882,16]
[408214096,1773246659843,-2807.0,0.00045882,16]
[408214097,1773246659856,-500.0,0.0004589,120]
[408214098,1773246659865,-2000.0,0.000459,2]
[408214099,1773246659875,-4513.0,0.000459,16]
[408214100,1773246659885,-150.0,0.00045909,30]
[408214101,1773246659895,-150.0,0.00045909,30]
[408214102,1773246659904,-150.0,0.00045909,30]
[408214103,1773246659914,-185.72002468,0.00045909,30]
[408214104,1773246659923,-150.0,0.0004593,30]
[408214105,1773246659933,-150.0,0.00045932,30]
[408214106,1773246659942,-150.0,0.00045938,30]
[408214107,1773246659951,-150.0,0.00045943,30]
[408214108,1773246659960,-150.0,0.00045946,30]
[408214109,1773246659970,-185.72002468,0.0004596,30]
[408214110,1773246659979,-2948.60753717,0.00045978,32]
[408214111,1773246659987,-19003.92381195,0.00045987,120]
[408214112,1773246659996,-151.94356594,0.00046,120]
[408214113,1773246660005,-3798.8277449,0.00046,30]
[408214114,1773246660014,-1791.67700514,0.00046,120]
[408214115,1773246660024,-864.43495803,0.00046,120]
[408214116,1773246660034,-291.2,0.00046,120]
[408214117,1773246660043,-6482.16265124,0.00046,120]
[408214118,1773246660053,-498.01271104,0.00046,120]
[408214119,1773246660063,-185.72002468,0.0004601,30]
[408214120,1773246660072,-150.0,0.00046017,30]
[408214121,1773246660082,-150.0,0.00046023,30]
[408214122,1773246660091,-786.0,0.00046027,120]
[408214123,1773246660105,-150.0,0.00046038,30]
[408214124,1773246660117,-150.0,0.00046047,30]
[408214125,1773246660128,-185.72002468,0.00046061,30]
[408214126,1773246660138,-150.0,0.00046081,30]
[408214127,1773246660147,-150.0,0.00046087,30]
[408214128,1773246660156,-155.28,0.00046092,30]
[408214129,1773246660165,-500.0,0.000461,45]
[408214130,1773246660176,-370.0,0.000461,45]
[408214131,1773246660185,-150.0,0.00046102,30]
[408214132,1773246660195,-1000.0,0.00046109,14]
[408214133,1773246660204,-185.72002468,0.00046111,30]
[408214134,1773246660213,-150.0,0.00046111,30]
[408214135,1773246660222,-150.0,0.00046132,30]
[408214136,1773246660232,-150.0,0.00046136,30]
[408214137,1773246660241,-1000.0,0.00046154,14]
[408214138,1773246660251,-185.72002468,0.00046162,30]
[408214139,1773246660259,-150.0,0.00046163,30]
[408214140,1773246660269,-150.0,0.00046186,30]
[408214141,1773246660279,-161.0,0.00046196,16]
[408214142,1773246660288,-28896.07,0.000462,120]
[408214143,1773246660298,-155.0,0.000462,120]
[408214144,1773246660308,-185.72002468,0.00046212,30]
[408214145,1773246660317,-150.0,0.00046216,30]
[408214146,1773246660326,-150.0,0.00046226,30]
[408214147,1773246660336,-150.0,0.0004625,30]
[408214148,1773246660345,-150.0,0.0004625,30]
[408214149,1773246660356,-150.0,0.0004625,30]
[408214150,1773246660366,-1000.0,0.00046255,14]
[408214151,1773246660375,-848.0,0.00046259,16]
[408214152,1773246660384,-847.0,0.00046261,16]
[408214153,1773246660394,-185.72002468,0.00046263,30]
[408214154,1773246660404,-150.0,0.00046271,30]
[408214155,1773246660413,-150.0,0.00046279,30]
[408214156,1773246660424,-500.0,0.00046301,120]
[408214157,1773246660434,-786.0,0.00046301,120]
[408214158,1773246660444,-150.0,0.00046304,30]
[408214159,1773246660454,-185.72002468,0.00046313,30]
[408214160,1773246660464,-150.0,0.00046321,30]
[408214161,1773246660474,-1082.99954587,0.00046338,110]
[408214162,1773246660484,-74590.0,0.0004635,60]
[408214163,1773246660494,-150.0,0.00046351,30]
[408214164,1773246660504,-1000.0,0.00046353,14]
[408214165,1773246660514,-150.0,0.00046356,30]
[408214166,1773246660524,-150.0,0.00046364,30]
[408214167,1773246660536,-150.0,0.00046364,30]
[408214168,1773246660546,-185.72002468,0.00046364,30]
[408214169,1773246660558,-150.0,0.00046364,30]
[408214170,1773246660567,-500.0,0.00046388,60]
[408214171,1773246660578,-150.0,0.00046389,30]
[408214172,1773246660587,-150.0,0.00046395,30]
[408214173,1773246660597,-25138.99293814,0.000464,120]
[408214174,1773246660608,-185.72002468,0.00046414,30]
[408214175,1773246660618,-150.0,0.00046415,30]
[408214176,1773246660627,-150.0,0.00046441,30]
[408214177,1773246660638,-185.72002468,0.00046465,30]
[408214178,1773246660648,-1531.52255228,0.00046467,18]
[408214179,1773246660657,-1531.52255215,0.00046467,18]
[408214180,1773246660667,-1531.52255215,0.00046467,18]
[408214181,1773246660677,-1531.52255215,0.00046467,18]
[408214182,1773246660686,-1531.52255215,0.00046467,18]
[408214183,1773246660696,-1531.52255215,0.00046467,18]
[408214184,1773246660706,-1531.52255215,0.00046467,18]
[408214185,1773246660716,-1531.52255215,0.00046467,18]
[408214186,1773246660725,-1531.52255215,0.00046467,18]
[408214187,1773246660734,-1531.52255215,0.00046467,18]
[408214188,1773246660745,-1531.52255215,0.00046467,18]
[408214189,1773246660755,-1531.52255215,0.00046467,18]
[408214190,1773246660765,-1531.52255215,0.00046467,18]
[408214191,1773246660775,-150.0,0.00046477,30]
[408214192,1773246660785,-338.1577855,0.0004648,60]
[408214193,1773246660794,-500.0,0.0004648,60]
[408214194,1773246660805,-504.13704332,0.0004648,60]
[408214195,1773246660816,-164.86902573,0.0004648,30]
[408214196,1773246660826,-500.0,0.00046484,120]
[408214197,1773246660835,-500.0,0.00046484,120]
[408214198,1773246660845,-500.0,0.00046484,120]
[408214199,1773246660856,-500.0,0.00046484,120]
[408214200,1773246660865,-500.0,0.00046484,120]
[408214201,1773246660874,-500.0,0.00046484,120]
[408214202,1773246660883,-500.0,0.00046484,120]
[408214203,1773246660893,-500.0,0.00046484,120]
[408214204,1773246660902,-500.0,0.00046484,120]
[408214205,1773246660911,-500.0,0.00046484,120]
[408214206,1773246660921,-500.0,0.00046484,120]
[408214207,1773246660930,-500.0,0.00046484,120]
[408214208,1773246660939,-500.0,0.00046484,120]
[408214209,1773246660949,-500.0,0.00046484,120]
[408214210,1773246660959,-500.0,0.00046484,120]
[408214211,1773246660970,-500.0,0.00046484,120]
[408214212,1773246660979,-500.0,0.00046484,120]
[408214213,1773246660989,-500.0,0.00046484,120]
[408214214,1773246660998,-500.0,0.00046484,120]
[408214215,1773246661007,-500.0,0.00046484,120]
[408214216,1773246661017,-500.0,0.00046484,120]
[408214217,1773246661026,-500.0,0.00046484,120]
[408214218,1773246661035,-500.0,0.00046484,120]
[408214219,1773246661044,-500.0,0.00046484,120]
[408214220,1773246661054,-500.0,0.00046484,120]
[408214221,1773246661063,-500.0,0.00046484,120]
[408214222,1773246661072,-500.0,0.00046484,120]
[408214223,1773246661082,-500.0,0.00046484,120]
[408214224,1773246661091,-500.0,0.00046484,120]
[408214225,1773246661104,-500.0,0.00046484,120]
[408214226,1773246661113,-500.0,0.00046484,120]
[408214227,1773246661123,-500.0,0.00046484,120]
[408214228,1773246661132,-500.0,0.00046484,120]